[Event "European Union U14-ch 2024"]
[Site "Roznov pod Radhostem"]
[Date "2024.08.12"]
[Round "8.3"]
[White "Stara, Zuzana"]
[Black "Boros, David"]
[Result "1-0"]
[ECO "D73"]
[WhiteElo "2005"]
[BlackElo "1796"]
[Annotator "NA RC"]
[PlyCount "153"]
[EventDate "2024.08.02"]
[EventType "swiss"]
[EventCountry "CZE"]
[SourceTitle "playchess.com"]
[Source "ChessBase"]
[SourceQuality "1"]
[TimeControl "5400+30"]

1. d4 {[%emt 0:00:02]} Nf6 {[%emt 0:01:04]} 2. Nf3 {[%emt 0:00:11]} g6 {[%emt 0:01:01]} 3. c4 {[%emt 0:00:28]} d5 {[%emt 0:00:47]} 4. g3 {[%emt 0:00:32]} Bg7 {[%emt 0:00:23]} 5. Bg2 {[%emt 0:04:11]} O-O {[%emt 0:03:49]} 6. cxd5 {[%emt 0:01:33]} Nxd5 {[%emt 0:03:19]} 7. Nc3 {[%emt 0:09:23]} Nxc3 {[%emt 0:03:14]} 8. bxc3 {[%emt 0:00:02]} c5 {[%emt 0:02:36]} 9. e3 {[%emt 0:03:36]} Nc6 {[%emt 0:03:30]} 10. O-O {[%emt 0:01:08]} Qc7 {[%emt 0:02:29]} 11. Qa4 {[%emt 0:02:54]} a6 $14 {[%emt 0:07:49]} 12. Qc4 {[%emt 0:09:12]} Na5 {[%emt 0:05:29]} 13. Qd3 {[%emt 0:01:34]} Rd8 {[%emt 0:04:22]} 14. e4 {[%emt 0:13:55]} b5 {[%emt 0:09:15]} 15. Rd1 {[%emt 0:02:25]} Nc4 {[%emt 0:02:36]} 16. Qe2 {[%emt 0:00:59]} Bb7 {[%emt 0:01:31]} 17. h4 {[%emt 0:10:36]} h5 {[%emt 0:09:19]} 18. a4 {[%emt 0:03:51]} Rac8 {[%emt 0:06:03]} 19. Rb1 {[%emt 0:02:14]} Qa5 {[%emt 0:03:34]} 20. axb5 {[%emt 0:05:08]} axb5 {[%emt 0:00:30]} 21. Bg5 {[%emt 0:05:29]} Kf8 {[%emt 0:11:06]} 22. Rbc1 {[%emt 0:06:05]} Qb6 {[%emt 0:03:38]} 23. d5 {[%emt 0:05:39]} Ba6 {[%emt 0:03:29]} 24. Nd2 {[%emt 0:03:00]} Nxd2 {[%emt 0:03:09]} 25. Qxd2 {[%emt 0:01:04]} b4 {[%emt 0:05:28]} 26. cxb4 {[%emt 0:00:28]} Qxb4 {[%emt 0:01:21]} 27. Qf4 {[%emt 0:01:07]} Qb2 {[%emt 0:01:58]} 28. Bh6 {[%emt 0:01:04]} Kg8 {[%emt 0:00:49]} 29. Bxg7 {[%emt 0:00:15]} Kxg7 {[%emt 0:00:32]} 30. e5 {[%emt 0:00:41]} Qb8 {[%emt 0:00:43]} 31. d6 {[%emt 0:01:21]} exd6 {[%emt 0:00:25]} 32. Qf6+ {[%emt 0:00:12]} Kg8 {[%emt 0:00:19]} 33. Bd5 {[%emt 0:02:04]} Rc7 {[%emt 0:00:49]} 34. Qxg6+ {[%emt 0:00:40]} Kf8 {[%emt 0:00:23]} 35. Qh6+ {[%emt 0:00:38]} Kg8 {[%emt 0:00:36]} 36. exd6 {[%emt 0:00:49]} Rcd7 {[%emt 0:00:21]} 37. Qxh5 {[%emt 0:00:49]} Rxd6 {[%emt 0:00:39]} 38. Qxf7+ {[%emt 0:01:19]} Kh8 {[%emt 0:00:06]} 39. Qh5+ {[%emt 0:00:36]} Kg7 {[%emt 0:00:07]} 40. Qe5+ {[%emt 0:00:19]} Kh6 {[%emt 0:00:54]} 41. Qg5+ {[%emt 0:00:59]} Kh7 {[%emt 0:00:12]} 42. Re1 {[%emt 0:00:44]} R8d7 {[%emt 0:00:30]} 43. Re7+ {[%emt 0:01:04]} Rxe7 {[%emt 0:00:15]} 44. Qxe7+ {[%emt 0:00:01]} Kh8 {[%emt 0:00:43]} 45. Qe5+ {[%emt 0:00:05]} Kh7 {[%emt 0:00:19]} 46. Be4+ {[%emt 0:01:22]} Kg8 {[%emt 0:00:41]} 47. Qxc5 {[%emt 0:00:09]} Qd8 {[%emt 0:00:55]} 48. Qg5+ {[%emt 0:01:10]} Qxg5 {[%emt 0:00:15]} 49. hxg5 {[%emt 0:00:00]} Rd2 {[%emt 0:00:28]} 50. Kg2 {[%emt 0:00:31]} Kf8 {[%emt 0:00:31]} 51. Rc6 {[%emt 0:00:40]} Ra2 {[%emt 0:00:29]} 52. Kf3 {[%emt 0:01:08]} Be2+ {[%emt 0:00:17]} 53. Kf4 {[%emt 0:00:22]} Bh5 {[%emt 0:00:12]} 54. f3 {[%emt 0:00:40]} Ra7 {[%emt 0:00:19]} 55. g4 {[%emt 0:00:50]} Be8 {[%emt 0:00:29]} 56. Rb6 {[%emt 0:00:19]} Ra5 {[%emt 0:00:27]} 57. Rb8 {[%emt 0:00:33]} Kf7 {[%emt 0:00:59]} 58. Bg6+ {[%emt 0:00:44]} Kxg6 {[%emt 0:00:11]} 59. Rxe8 {[%emt 0:00:02]} Ra4+ {[%emt 0:00:43]} 60. Re4 {[%emt 0:00:08]} Ra5 {[%emt 0:00:36]} 61. Re6+ {[%emt 0:00:33]} Kf7 {[%emt 0:00:15]} 62. Re5 {[%emt 0:00:54]} Ra3 {[%emt 0:00:08]} 63. Rf5+ {[%emt 0:00:49]} Kg7 {[%emt 0:00:31]} 64. Kg3 {[%emt 0:00:27]} Ra1 {[%emt 0:00:12]} 65. f4 {[%emt 0:00:37]} Ra3+ {[%emt 0:00:28]} 66. Kh4 {[%emt 0:00:31]} Ra1 {[%emt 0:00:10]} 67. Rb5 {[%emt 0:00:17]} Rh1+ {[%emt 0:00:16]} 68. Kg3 {[%emt 0:00:05]} Ra1 {[%emt 0:00:10]} 69. f5 {[%emt 0:00:25]} Ra4 {[%emt 0:00:24]} 70. Rb7+ {[%emt 0:00:09]} Kg8 {[%emt 0:00:08]} 71. Kh4 {[%emt 0:00:05]} Ra1 {[%emt 0:00:13]} 72. Kh5 {[%emt 0:00:08]} Ra6 {[%emt 0:00:07]} 73. f6 {[%emt 0:00:26]} Ra8 {[%emt 0:00:24]} 74. Kg6 {[%emt 0:00:16]} Rc8 {[%emt 0:00:33]} 75. Rg7+ {[%emt 0:00:21]} Kh8 {[%emt 0:00:20]} 76. Rh7+ {[%emt 0:00:05]} Kg8 {[%emt 0:00:12]} 77. f7+ {[%emt 0:00:17]} 1-0

[Event "European Union U14-ch 2024"]
[Site "Roznov pod Radhostem"]
[Date "2024.08.12"]
[Round "8.4"]
[White "Duchatel, Maxime"]
[Black "Madel, Luca"]
[Result "0-1"]
[ECO "B21"]
[WhiteElo "1682"]
[BlackElo "1628"]
[Annotator "NA RC"]
[PlyCount "64"]
[EventDate "2024.08.02"]
[EventType "swiss"]
[EventCountry "CZE"]
[SourceTitle "playchess.com"]
[Source "ChessBase"]
[SourceQuality "1"]
[TimeControl "5400+30"]

1. e4 {[%emt 0:00:06]} c5 {[%emt 0:00:05]} 2. d4 {[%emt 0:00:04]} cxd4 {[%emt 0:00:05]} 3. c3 {[%emt 0:00:04]} dxc3 {[%emt 0:00:16]} 4. Nxc3 {[%emt 0:00:04]} Nc6 {[%emt 0:00:05]} 5. Nf3 {[%emt 0:00:06]} e6 {[%emt 0:00:18]} 6. Bc4 {[%emt 0:00:07]} Qc7 {[%emt 0:00:20]} 7. Qe2 {[%emt 0:00:54]} Nf6 {[%emt 0:01:04]} 8. O-O {[%emt 0:01:07]} Ng4 {[%emt 0:00:13]} 9. h3 {[%emt 0:04:16]} Nd4 {[%emt 0:00:14]} 10. hxg4 {[%emt 0:05:38]} Nxe2+ 11. Bxe2 a6 {[%emt 0:01:24]} 12. Be3 {[%emt 0:00:53]} b5 {[%emt 0:01:25]} 13. Rac1 {[%emt 0:01:35]} Qd8 {[%emt 0:00:27]} 14. Bf4 {[%emt 0:00:18]} d6 {[%emt 0:00:56]} 15. Rfd1 {[%emt 0:00:28]} Be7 {[%emt 0:02:31]} 16. Ne5 {[%emt 0:02:34]} Bb7 {[%emt 0:02:11]} 17. a3 {[%emt 0:11:13]} O-O {[%emt 0:00:53]} 18. Nf3 {[%emt 0:00:15]} Qb6 {[%emt 0:02:07]} 19. Be3 {[%emt 0:00:26]} Qa5 {[%emt 0:01:32]} 20. Kh2 {[%emt 0:02:37]} Rfc8 {[%emt 0:01:40]} 21. Rh1 {[%emt 0:00:28]} Qd8 {[%emt 0:03:29]} 22. Bd3 {[%emt 0:00:40]} d5 {[%emt 0:01:48]} 23. Kg1 {[%emt 0:00:14]} dxe4 {[%emt 0:00:30]} 24. Bxe4 {[%emt 0:00:28]} Bxe4 {[%emt 0:00:25]} 25. Nxe4 {[%emt 0:00:04]} Rxc1+ {[%emt 0:00:11]} 26. Bxc1 {[%emt 0:00:01]} Rc8 {[%emt 0:00:44]} 27. Be3 {[%emt 0:00:10]} Bf6 {[%emt 0:01:14]} 28. Nxf6+ {[%emt 0:01:28]} Qxf6 {[%emt 0:00:09]} 29. Bd4 {[%emt 0:00:29]} Rc1+ {[%emt 0:00:14]} 30. Kh2 {[%emt 0:00:20]} Qf4+ {[%emt 0:00:09]} 31. g3 {[%emt 0:00:15]} Rxh1+ {[%emt 0:00:06]} 32. Kxh1 {[%emt 0:00:08]} Qxf3+ {[%emt 0:00:05]} 0-1

[Event "European Union U14-ch 2024"]
[Site "Roznov pod Radhostem"]
[Date "2024.08.12"]
[Round "8.5"]
[White "Barteckova, Nikol"]
[Black "Michalska, Lena"]
[Result "0-1"]
[ECO "B06"]
[WhiteElo "1669"]
[BlackElo "1837"]
[Annotator "NA RC"]
[PlyCount "144"]
[EventDate "2024.08.02"]
[EventType "swiss"]
[EventCountry "CZE"]
[SourceTitle "playchess.com"]
[Source "ChessBase"]
[SourceQuality "1"]
[TimeControl "5400+30"]

1. e4 {[%emt 0:00:01]} g6 {[%emt 0:00:03]} 2. d4 {[%emt 0:00:27]} Bg7 {[%emt 0:00:04]} 3. Nc3 {[%emt 0:00:12]} d6 {[%emt 0:00:17]} 4. Be3 {[%emt 0:01:23]} Nd7 {[%emt 0:00:06]} 5. Nf3 {[%emt 0:01:01]} c5 {[%emt 0:00:06]} 6. Be2 {[%emt 0:02:22]} a6 {[%emt 0:01:02]} 7. a4 {[%emt 0:00:35]} b6 {[%emt 0:00:05]} 8. O-O {[%emt 0:02:30]} Bb7 {[%emt 0:00:07]} 9. Rb1 {[%emt 0:08:26]} Qc7 {[%emt 0:06:59]} 10. Qd2 {[%emt 0:07:01]} cxd4 {[%emt 0:08:51]} 11. Nxd4 {[%emt 0:01:58]} Ngf6 {[%emt 0:00:17]} 12. f3 {[%emt 0:01:10]} O-O {[%emt 0:00:33]} 13. Kh1 {[%emt 0:01:50]} Rfc8 {[%emt 0:00:25]} 14. Bh6 {[%emt 0:01:31]} Bh8 {[%emt 0:00:06]} 15. Rfc1 {[%emt 0:01:53]} Ne5 {[%emt 0:09:07]} 16. Bf1 {[%emt 0:02:51]} Nc4 {[%emt 0:01:37]} 17. Qd1 {[%emt 0:06:27]} Qc5 {[%emt 0:06:47]} 18. Bxc4 {[%emt 0:04:39]} Qxc4 {[%emt 0:00:09]} 19. Nde2 {[%emt 0:04:05]} b5 {[%emt 0:11:51]} 20. b3 {[%emt 0:03:32]} Qc5 {[%emt 0:01:28]} 21. Qd2 {[%emt 0:01:03]} Nd7 {[%emt 0:06:37]} 22. Nd5 {[%emt 0:03:35]} Bxd5 {[%emt 0:00:23]} 23. exd5 {[%emt 0:00:31]} Nb6 {[%emt 0:02:56]} 24. Nf4 {[%emt 0:03:24]} bxa4 {[%emt 0:01:37]} 25. bxa4 {[%emt 0:05:47]} Nxa4 {[%emt 0:00:28]} 26. Rb7 {[%emt 0:02:14]} Bf6 {[%emt 0:03:26]} 27. g4 {[%emt 0:07:41]} Ra7 {[%emt 0:08:08]} 28. Nd3 {[%emt 0:03:38]} Rxb7 {[%emt 0:22:50]} 29. Nxc5 {[%emt 0:00:15]} Nxc5 {[%emt 0:00:04]} 30. Be3 {[%emt 0:06:39]} Rb5 {[%emt 0:02:27]} 31. Qe2 {[%emt 0:03:43]} Ra5 {[%emt 0:03:56]} 32. c4 {[%emt 0:02:27]} Ra3 {[%emt 0:03:04]} 33. Rc2 {[%emt 0:01:54]} Ra1+ {[%emt 0:00:30]} 34. Kg2 {[%emt 0:00:47]} Kf8 {[%emt 0:00:27]} 35. Kh3 {[%emt 0:03:59]} a5 {[%emt 0:00:18]} 36. Ra2 {[%emt 0:01:16]} Rxa2 {[%emt 0:00:18]} 37. Qxa2 {[%emt 0:00:07]} Bc3 {[%emt 0:00:30]} 38. Bd2 {[%emt 0:01:05]} Bxd2 {[%emt 0:00:06]} 39. Qxd2 {[%emt 0:00:07]} a4 {[%emt 0:00:06]} 40. Qa2 {[%emt 0:00:52]} Rb8 {[%emt 0:00:10]} 41. Qa1 {[%emt 0:00:47]} Kg8 {[%emt 0:00:40]} 42. Qe1 {[%emt 0:00:19]} Rb7 {[%emt 0:00:27]} 43. Qa5 {[%emt 0:00:26]} h6 {[%emt 0:00:56]} 44. Kg3 {[%emt 0:00:39]} Kg7 {[%emt 0:00:31]} 45. h4 {[%emt 0:00:32]} Rb3 {[%emt 0:01:23]} 46. Kg2 {[%emt 0:02:29]} a3 {[%emt 0:00:29]} 47. Kg3 {[%emt 0:00:47]} Ne4+ {[%emt 0:00:29]} 48. Kg2 {[%emt 0:01:32]} Nd2 {[%emt 0:00:41]} 49. h5 {[%emt 0:00:57]} gxh5 {[%emt 0:00:17]} 50. gxh5 {[%emt 0:00:12]} Nxf3 {[%emt 0:00:26]} 51. Qa4 {[%emt 0:01:10]} Nd4 {[%emt 0:00:29]} 52. Qa7 {[%emt 0:00:49]} Nf5 {[%emt 0:00:22]} 53. Qa4 {[%emt 0:00:25]} Rb2+ {[%emt 0:00:24]} 54. Kf3 {[%emt 0:00:29]} a2 {[%emt 0:00:06]} 55. Ke4 {[%emt 0:00:54]} Ng3+ {[%emt 0:00:21]} 56. Kd4 {[%emt 0:00:06]} Ne2+ {[%emt 0:00:57]} 57. Ke3 {[%emt 0:00:23]} Nc1 {[%emt 0:01:07]} 58. Qa7 {[%emt 0:00:28]} Rb1 {[%emt 0:00:30]} 59. Qd4+ {[%emt 0:00:22]} Kh7 {[%emt 0:00:29]} 60. Qe4+ {[%emt 0:00:25]} Kh8 {[%emt 0:00:27]} 61. Qd4+ {[%emt 0:00:23]} f6 {[%emt 0:00:26]} 62. Qf4 {[%emt 0:00:25]} a1=Q {[%emt 0:00:31]} 63. Qxh6+ {[%emt 0:00:11]} Kg8 {[%emt 0:00:05]} 64. Qg6+ {[%emt 0:00:09]} Kf8 {[%emt 0:00:08]} 65. Qh6+ {[%emt 0:00:30]} Ke8 {[%emt 0:00:07]} 66. Qg6+ {[%emt 0:00:21]} Kd7 {[%emt 0:00:25]} 67. Qf5+ {[%emt 0:00:55]} Kd8 {[%emt 0:00:25]} 68. Qe6 {[%emt 0:00:50]} Rb3+ {[%emt 0:01:36]} 69. Kf4 {[%emt 0:00:06]} Qd4+ {[%emt 0:00:33]} 70. Kf5 {[%emt 0:00:13]} Qe5+ {[%emt 0:00:33]} 71. Kg6 {[%emt 0:00:24]} Rg3+ {[%emt 0:00:22]} 72. Kf7 {[%emt 0:00:13]} Qxh5+ {[%emt 0:00:09]} 0-1

[Event "European Union U14-ch 2024"]
[Site "Roznov pod Radhostem"]
[Date "2024.08.12"]
[Round "8.6"]
[White "Ochkova, Maria"]
[Black "Myronova, Sofia"]
[Result "1/2-1/2"]
[ECO "B24"]
[WhiteElo "1553"]
[BlackElo "1463"]
[Annotator "NA RC"]
[PlyCount "81"]
[EventDate "2024.08.02"]
[EventType "swiss"]
[EventCountry "CZE"]
[SourceTitle "playchess.com"]
[Source "ChessBase"]
[SourceQuality "1"]
[TimeControl "5400+30"]

1. e4 {[%emt 0:00:03]} c5 {[%emt 0:00:12]} 2. Nc3 {[%emt 0:00:14]} Nc6 {[%emt 0:00:17]} 3. g3 {[%emt 0:00:20]} d6 {[%emt 0:00:31]} 4. Bg2 {[%emt 0:00:09]} Nf6 {[%emt 0:00:58]} 5. Nge2 {[%emt 0:00:22]} g6 {[%emt 0:00:16]} 6. d3 {[%emt 0:00:13]} Bg7 {[%emt 0:00:12]} 7. O-O {[%emt 0:00:41]} O-O {[%emt 0:00:24]} 8. h3 {[%emt 0:00:47]} Rb8 {[%emt 0:01:47]} 9. Be3 {[%emt 0:00:39]} a6 {[%emt 0:00:29]} 10. Qd2 {[%emt 0:00:46]} Bd7 {[%emt 0:02:38]} 11. f4 {[%emt 0:01:26]} e6 {[%emt 0:00:52]} 12. Rf2 {[%emt 0:00:59]} Ne8 {[%emt 0:00:40]} 13. e5 {[%emt 0:02:08]} b6 {[%emt 0:01:58]} 14. d4 {[%emt 0:03:46]} cxd4 {[%emt 0:05:09]} 15. Bxd4 {[%emt 0:00:09]} dxe5 {[%emt 0:00:25]} 16. Be3 {[%emt 0:02:38]} Nc7 {[%emt 0:11:14]} 17. Rd1 {[%emt 0:00:57]} Be8 {[%emt 0:03:07]} 18. Qd6 {[%emt 0:01:18]} Qxd6 {[%emt 0:02:59]} 19. Rxd6 {[%emt 0:00:10]} Nb4 {[%emt 0:02:04]} 20. Rxb6 {[%emt 0:00:38]} Rxb6 {[%emt 0:00:36]} 21. Bxb6 {[%emt 0:00:06]} Ncd5 {[%emt 0:02:12]} 22. Nxd5 {[%emt 0:00:36]} Nxd5 {[%emt 0:02:53]} 23. Bc5 {[%emt 0:00:06]} exf4 {[%emt 0:00:40]} 24. gxf4 {[%emt 0:00:54]} Bxb2 {[%emt 0:01:09]} 25. Bxf8 {[%emt 0:00:56]} Kxf8 {[%emt 0:00:12]} 26. c4 {[%emt 0:00:40]} Nb4 {[%emt 0:01:13]} 27. Kh1 {[%emt 0:01:10]} Nd3 {[%emt 0:02:39]} 28. Rf1 {[%emt 0:00:39]} f5 {[%emt 0:05:46]} 29. Rf3 {[%emt 0:04:40]} Nc5 {[%emt 0:01:51]} 30. Nc3 {[%emt 0:04:40]} Bc1 {[%emt 0:01:12]} 31. Rf1 {[%emt 0:08:51]} Bd2 {[%emt 0:04:29]} 32. Ne2 {[%emt 0:00:28]} Ba4 {[%emt 0:00:47]} 33. Rb1 {[%emt 0:01:01]} Kf7 {[%emt 0:04:02]} 34. Rb8 {[%emt 0:02:03]} Be3 {[%emt 0:04:19]} 35. Rb1 {[%emt 0:05:29]} Bc2 {[%emt 0:02:21]} 36. Rf1 {[%emt 0:08:57]} Bd3 {[%emt 0:01:23]} 37. Rf3 {[%emt 0:00:27]} Bd2 {[%emt 0:00:41]} 38. Nd4 {[%emt 0:03:19]} Be4 {[%emt 0:01:50]} 39. Rf1 {[%emt 0:00:36]} Bd3 {[%emt 0:00:57]} 40. Rd1 {[%emt 0:09:04]} Bxf4 {[%emt 0:01:18]} 41. Nb3 {[%emt 0:00:47]} 1/2-1/2

[Event "European Union U14-ch 2024"]
[Site "Roznov pod Radhostem"]
[Date "2024.08.12"]
[Round "8.7"]
[White "Pritulina, Nadezhda"]
[Black "Golub, Mia"]
[Result "1-0"]
[ECO "B23"]
[WhiteElo "1589"]
[BlackElo "1418"]
[Annotator "NA RC"]
[PlyCount "91"]
[EventDate "2024.08.02"]
[EventType "swiss"]
[EventCountry "CZE"]
[SourceTitle "playchess.com"]
[Source "ChessBase"]
[SourceQuality "1"]
[TimeControl "5400+30"]

1. e4 {[%emt 0:00:02]} c5 {[%emt 0:00:06]} 2. Nc3 {[%emt 0:00:14]} e6 {[%emt 0:00:10]} 3. f4 {[%emt 0:00:04]} Nc6 {[%emt 0:00:57]} 4. g3 {[%emt 0:00:09]} d6 {[%emt 0:01:25]} 5. Bg2 {[%emt 0:00:33]} a6 {[%emt 0:01:49]} 6. a4 {[%emt 0:00:20]} Be7 {[%emt 0:01:22]} 7. d3 {[%emt 0:02:51]} Nd4 {[%emt 0:03:29]} 8. Nge2 {[%emt 0:02:40]} Bf6 {[%emt 0:03:01]} 9. Be3 {[%emt 0:06:33]} Nxe2 {[%emt 0:03:14]} 10. Qxe2 {[%emt 0:00:14]} Qa5 {[%emt 0:03:20]} 11. Bd2 {[%emt 0:03:40]} b5 {[%emt 0:03:38]} 12. e5 {[%emt 0:04:10]} Rb8 {[%emt 0:06:23]} 13. exf6 {[%emt 0:00:24]} Nxf6 {[%emt 0:00:19]} 14. Nd5 {[%emt 0:04:03]} Qd8 {[%emt 0:03:43]} 15. Nxf6+ {[%emt 0:00:07]} Qxf6 {[%emt 0:00:14]} 16. Bc3 {[%emt 0:00:10]} Qg6 {[%emt 0:05:50]} 17. axb5 {[%emt 0:00:19]} axb5 {[%emt 0:02:28]} 18. b4 {[%emt 0:05:37]} O-O {[%emt 0:02:53]} 19. bxc5 {[%emt 0:01:00]} dxc5 {[%emt 0:00:21]} 20. Qe5 {[%emt 0:04:41]} Bd7 {[%emt 0:04:20]} 21. Qxc5 {[%emt 0:00:31]} Rbc8 {[%emt 0:02:22]} 22. Qd4 {[%emt 0:00:18]} Rfd8 {[%emt 0:02:04]} 23. Ba5 {[%emt 0:04:26]} f6 {[%emt 0:08:51]} 24. Bxd8 {[%emt 0:00:19]} Rxd8 {[%emt 0:00:13]} 25. Bc6 {[%emt 0:01:46]} Qe8 {[%emt 0:03:47]} 26. Bxd7 {[%emt 0:00:09]} Rxd7 {[%emt 0:00:19]} 27. Qe4 {[%emt 0:00:08]} h6 {[%emt 0:02:06]} 28. Ra8 {[%emt 0:00:25]} Rd8 {[%emt 0:02:01]} 29. Rxd8 {[%emt 0:00:08]} Qxd8 {[%emt 0:00:07]} 30. Qxe6+ {[%emt 0:00:05]} Kh7 {[%emt 0:00:46]} 31. Qf5+ {[%emt 0:01:05]} Kg8 {[%emt 0:00:52]} 32. Qxb5 {[%emt 0:00:06]} Qe7+ {[%emt 0:03:41]} 33. Kd2 {[%emt 0:00:13]} Kh7 {[%emt 0:03:07]} 34. Re1 {[%emt 0:00:22]} Qf8 {[%emt 0:01:53]} 35. Re8 {[%emt 0:00:39]} Qf7 {[%emt 0:01:44]} 36. Qf5+ {[%emt 0:00:45]} g6 {[%emt 0:02:02]} 37. Qe6 {[%emt 0:00:07]} Qxe6 {[%emt 0:03:00]} 38. Rxe6 {[%emt 0:00:08]} Kg7 {[%emt 0:00:12]} 39. Re7+ {[%emt 0:00:48]} Kf8 {[%emt 0:00:12]} 40. Ra7 {[%emt 0:00:10]} Ke8 {[%emt 0:01:00]} 41. c4 {[%emt 0:00:06]} Kd8 {[%emt 0:00:12]} 42. c5 {[%emt 0:00:04]} Kc8 {[%emt 0:00:05]} 43. c6 {[%emt 0:00:07]} Kb8 {[%emt 0:00:09]} 44. Re7 {[%emt 0:00:33]} Kc8 {[%emt 0:00:07]} 45. c7 {[%emt 0:00:05]} f5 {[%emt 0:00:13]} 46. d4 {[%emt 0:00:05]} 1-0

[Event "European Union U14-ch 2024"]
[Site "Roznov pod Radhostem"]
[Date "2024.08.13"]
[Round "9.3"]
[White "Stara, Zuzana"]
[Black "Kincses, Emma"]
[Result "1/2-1/2"]
[ECO "B31"]
[WhiteElo "2005"]
[BlackElo "1618"]
[Annotator "NA RC"]
[PlyCount "24"]
[EventDate "2024.08.02"]
[EventType "swiss"]
[EventCountry "CZE"]
[SourceTitle "playchess.com"]
[Source "ChessBase"]
[SourceQuality "1"]
[TimeControl "5400+30"]

1. e4 {[%emt 0:00:02]} c5 {[%emt 0:00:06]} 2. Nf3 {[%emt 0:00:09]} Nc6 {[%emt 0:00:08]} 3. Bb5 {[%emt 0:00:16]} g6 {[%emt 0:00:29]} 4. Bxc6 {[%emt 0:02:08]} bxc6 {[%emt 0:00:09]} 5. O-O {[%emt 0:01:36]} Bg7 {[%emt 0:00:48]} 6. Nc3 {[%emt 0:02:22]} d5 {[%emt 0:01:50]} (6... Nf6 $11) 7. d3 {[%emt 0:03:47]} Nf6 {[%emt 0:02:56]} 8. Qe2 {[%emt 0:01:07]} (8. Re1 $14 {feels stronger.}) 8... O-O {[%emt 0:03:25]} 9. Bg5 {[%emt 0:02:03]} Ba6 $16 {[%emt 0:05:32]} (9... Re8 $11 {keeps the balance.}) 10. Rfe1 {[%emt 0:04:05]} h6 {[%emt 0:21:15]} 11. Bh4 {[%emt 0:02:09]} Qc7 {[%emt 0:14:52]} 12. exd5 {[%emt 0:21:29]} Nxd5 {[%emt 0:06:08]} 1/2-1/2